bitfinex/quotes_ETHUSD_20240621
["timestamp","ask_amount","ask_price","bid_price","bid_amount"]
[1718929274827,2.07781069,3501.6,3500.3,2.111]
[1718929275027,2.07781069,3501.6,3500.4,0.2111]
[1718929275250,2.07781069,3501.5,3500.4,0.2111]
[1718929275469,2.07781069,3501.4,3500.4,0.2111]
[1718929275674,2.07781069,3501.3,3500.5,0.23221]
[1718929275820,0.95380988,3502.0,3500.5,0.23221]
[1718929275821,0.49462716,3501.9,3500.5,0.23221]
[1718929276025,2.07743408,3501.8,3500.5,0.23221]
[1718929276273,2.57206124,3501.8,3500.5,0.23221]
[1718929276553,2.07743408,3501.7,3500.5,0.23221]
[1718929276758,2.07743408,3501.7,3500.7,2.111]
[1718929276944,2.07743408,3501.7,3500.8,0.461411]
[1718929277188,1.715,3502.3,3500.8,3.461411]
[1718929277331,2.07721996,3502.2,3500.8,3.461411]
[1718929277533,2.3822,3502.8,3500.8,3.461411]
[1718929277534,2.07721996,3502.1,3500.9,1.0843311]
[1718929277734,2.07721996,3502.0,3500.8,0.461411]
[1718929278041,2.07721996,3501.9,3501.0,2.2709]
[1718929278260,0.49456475,3502.7,3501.0,5.2709]
[1718929278566,2.1310069,3502.6,3501.0,5.2709]
[1718929278762,2.07710245,3502.5,3501.0,5.2709]
[1718929278961,2.95708986,3502.5,3501.1,0.63069801]
[1718929279133,2.07710245,3502.4,3501.1,3.63069801]
[1718929279336,0.05390445,3502.3,3501.1,3.63069801]
[1718929279540,2.07710245,3502.2,3501.2,0.5901598]
[1718929279974,2.1310069,3502.1,3501.2,0.5901598]
[1718929280215,2.07710245,3502.0,3501.2,0.5901598]
[1718929280499,4.0972,3502.8,3501.3,0.58610598]
[1718929280686,0.05390445,3501.9,3501.3,0.58610598]
[1718929280845,0.49454432,3502.7,3501.3,0.58610598]
[1718929281026,2.07707179,3502.6,3501.3,0.58610598]
[1718929281228,2.79785785,3502.6,3501.4,0.3586106]
[1718929281428,1.715,3502.4,3501.1,3.0]
[1718929281634,3.79207179,3502.3,3500.6,3.0]
[1718929281851,3.79207179,3502.3,3500.5,2.2709]
[1718929281852,2.57167945,3502.2,3500.5,2.2709]
[1718929282046,2.07707179,3502.1,3500.6,0.22709]
[1718929282248,2.13158079,3502.1,3500.6,0.22709]
[1718929282453,4.0972,3501.9,3500.3,3.0]
[1718929282680,4.0972,3501.9,3500.1,2.2709]
[1718929282681,1.715,3501.7,3500.1,2.2709]
[1718929282878,2.74396212,3501.6,3500.1,2.2709]
[1718929283105,2.07707179,3501.5,3500.1,2.2709]
[1718929283290,2.57181268,3501.5,3500.1,2.2709]
[1718929283493,6.13131945,3501.4,3500.1,2.2709]
[1718929283692,2.75689277,3501.3,3500.1,2.2709]
[1718929283868,2.07707179,3501.2,3500.1,2.2709]
[1718929284063,2.07707179,3501.2,3499.5,2.2709]
[1718929284368,2.3822,3501.0,3499.4,9.19961913]
[1718929284686,2.07707179,3500.9,3499.5,3.91996191]
[1718929284882,2.1309796,3500.9,3499.5,3.91996191]
[1718929285086,2.07707179,3500.8,3499.5,3.91996191]
[1718929285604,0.0538359,3500.7,3499.5,3.91996191]
[1718929285783,2.07707179,3500.6,3499.5,3.91996191]
[1718929286102,2.07707179,3500.6,3499.6,3.0]
[1718929286312,0.0538359,3500.5,3499.1,3.0]
[1718929286455,0.0538359,3500.5,3499.2,0.80959]
[1718929286658,1.715,3501.2,3499.2,0.80959]
[1718929286859,2.07806669,3501.1,3499.2,0.80959]
[1718929287094,2.13175877,3501.1,3499.2,0.80959]
[1718929287298,2.53072467,3501.0,3499.3,0.608049]
[1718929287598,2.13175223,3500.9,3499.3,0.608049]
[1718929287905,2.07806669,3500.8,3499.3,0.608049]
[1718929288199,2.07806669,3500.8,3499.4,0.01575182]
[1718929288411,2.13180453,3500.7,3499.5,0.14333908]
[1718929288560,2.07806669,3500.6,3499.6,0.01576081]
[1718929288757,2.07806669,3500.6,3499.5,0.14333908]
[1718929289063,0.45265798,3501.0,3499.5,0.14333908]
[1718929289266,2.0779727,3500.9,3499.5,0.14333908]
[1718929289470,2.0779727,3500.8,3499.5,0.14333908]
[1718929289788,2.0779727,3500.8,3499.6,2.2709]
[1718929289993,0.67982098,3501.3,3499.6,2.2709]
[1718929289994,0.05369862,3500.7,3499.6,2.2709]
[1718929290162,1.715,3501.6,3499.7,0.77003191]
[1718929290366,2.0778121,3501.3,3499.7,3.77003191]
[1718929290589,2.13153033,3501.3,3499.7,3.77003191]
[1718929290904,2.0778121,3501.2,3499.7,3.77003191]
[1718929291108,2.0778121,3501.2,3499.8,0.6184271]
[1718929291427,0.05371823,3501.1,3499.8,0.6184271]
[1718929291699,2.0778121,3501.0,3499.8,0.6184271]
[1718929292400,2.3822,3500.6,3498.7,0.1211466]
[1718929292705,4.69738038,3500.5,3498.7,0.1211466]
[1718929292901,1.715,3500.3,3498.7,0.1211466]
[1718929293066,1.715,3500.1,3498.7,0.1211466]
[1718929293395,1.715,3499.8,3498.7,0.1211466]
[1718929293577,2.0778121,3499.7,3498.7,0.1211466]
[1718929293774,0.66698604,3499.6,3498.7,0.1211466]
[1718929293976,2.0778121,3499.5,3498.7,0.1211466]
[1718929294180,2.6259274,3499.5,3498.7,0.1211466]
[1718929294373,2.0778121,3499.4,3498.7,0.1211466]
[1718929294800,0.05326702,3499.3,3498.7,0.1211466]
[1718929294998,2.0778121,3499.2,3498.7,0.1211466]
[1718929295203,2.13097445,3499.2,3498.7,0.1211466]
[1718929295593,1.715,3499.0,3498.7,0.1211466]
[1718929295683,1.715,3498.8,3498.7,0.1211466]
[1718929295880,4.46665705,3498.8,3498.7,0.1211466]
[1718929296079,4.51941058,3498.8,3498.7,0.1211466]
[1718929296604,6.80441058,3498.8,3498.7,0.1211466]
[1718929296802,6.13178721,3498.8,3498.7,0.1211466]
[1718929297196,4.05275353,3498.8,3498.7,0.1211466]
[1718929297393,6.13211955,3498.8,3498.7,0.1211466]
[1718929297574,4.05275353,3498.8,3498.7,0.1211466]
[1718929299776,0.05275353,3498.8,3498.7,0.1211466]
[1718929300025,1.715,3499.6,3498.7,0.1211466]
[1718929300204,2.3822,3499.7,3498.7,0.1211466]
[1718929300205,0.05253434,3498.8,3498.7,0.1211466]
[1718929300546,0.40972,3499.5,3498.7,0.1211466]
[1718929300701,0.05253434,3498.8,3498.7,0.1211466]
[1718929300920,0.40972,3499.5,3498.7,0.1211466]
[1718929301209,2.3822,3499.7,3498.7,0.1211466]
[1718929301407,0.05253434,3499.4,3498.7,0.1211466]
[1718929301598,0.23822,3499.6,3498.7,0.1211466]
[1718929301789,0.05263577,3499.3,3498.7,0.1211466]
[1718929301988,0.23822,3499.6,3498.7,0.1211466]
[1718929302313,0.05263577,3499.2,3498.7,0.1211466]
[1718929302484,0.23822,3499.6,3498.7,0.1211466]
[1718929302685,0.05263577,3499.1,3498.7,0.1211466]
[1718929302895,0.23822,3499.6,3498.7,0.1211466]
[1718929303091,0.262042,3499.5,3498.7,0.1211466]
[1718929303294,0.31467777,3499.5,3498.7,0.1211466]
[1718929307034,0.05263577,3499.5,3498.7,0.1211466]
[1718929307393,1.715,3499.9,3498.7,0.1211466]
[1718929307599,0.05270775,3499.4,3498.7,0.1211466]
[1718929307926,1.715,3499.9,3498.7,0.1211466]
[1718929308128,0.05270775,3499.3,3498.7,0.1211466]
[1718929308329,1.715,3499.9,3498.7,0.1211466]
[1718929308520,0.05270775,3499.2,3498.7,0.1211466]
[1718929308902,0.48285918,3499.8,3498.7,0.1211466]
[1718929309340,0.05273719,3499.7,3498.7,0.1211466]
[1718929310241,1.715,3500.2,3498.7,0.1211466]
[1718929310410,0.05278626,3499.6,3498.8,0.53920466]
[1718929310612,2.004,3500.5,3498.8,0.53920466]
[1718929310821,2.07860071,3500.4,3498.8,0.53920466]
[1718929311060,3.84637714,3500.4,3498.8,0.53920466]
[1718929311332,2.53825771,3500.3,3498.9,0.59312513]
[1718929311821,0.05277643,3500.2,3498.9,0.59312513]
[1718929312370,1.715,3500.5,3499.0,2.2709]
[1718929312501,0.05277643,3500.1,3499.1,0.28640251]
[1718929312851,2.49884872,3501.0,3499.1,0.28640251]
[1718929313001,0.05293019,3500.0,3499.2,0.61504276]
[1718929313201,0.49484872,3500.9,3499.2,0.61504276]
[1718929313445,0.05293019,3499.9,3499.3,0.61723453]
[1718929313647,0.70346687,3500.8,3499.3,0.61723453]
[1718929313817,0.05293019,3499.8,3499.3,0.61723453]
[1718929314176,0.70346687,3500.8,3499.3,0.61723453]
[1718929314640,0.05293019,3500.7,3499.3,0.61723453]
[1718929314825,0.05293019,3500.7,3499.4,0.3903637]
[1718929316317,2.05693019,3500.7,3499.4,0.3903637]
[1718929316507,2.55175383,3500.7,3499.4,0.3903637]
[1718929317328,2.05693019,3500.7,3499.4,0.3903637]
[1718929317528,2.55175438,3500.7,3499.4,0.3903637]
[1718929317720,2.55175438,3500.7,3499.5,2.2709]
[1718929317923,2.55175438,3500.7,3499.6,0.32784982]
[1718929318102,2.55175438,3500.7,3499.6,3.32784982]
[1718929318323,2.05693019,3500.7,3499.6,3.32784982]
[1718929318523,2.55175422,3500.7,3499.6,3.0]
[1718929318716,2.55175422,3500.7,3499.5,5.2709]
[1718929318932,2.55175422,3500.7,3499.6,3.0]
[1718929319210,0.49702211,3500.6,3499.5,2.2709]
[1718929319419,1.04509031,3500.6,3499.5,2.2709]
[1718929320125,0.5480682,3500.6,3499.5,2.2709]
[1718929320310,0.05324417,3500.6,3499.5,2.2709]
[1718929320814,0.05330955,3500.5,3499.5,2.2709]
[1718929321017,2.49881017,3501.0,3499.5,2.2709]
[1718929321313,2.004,3500.6,3499.5,2.2709]
[1718929321915,0.05330955,3500.5,3499.2,3.0]
[1718929322114,2.004,3500.2,3499.1,8.64551913]
[1718929322336,0.2004,3500.1,3499.1,6.37461913]
[1718929322721,0.05330955,3500.0,3499.1,6.37461913]
[1718929323439,2.004,3500.2,3499.1,6.37461913]
[1718929323641,0.05326705,3499.9,3499.1,6.37461913]
[1718929323830,0.49491461,3500.1,3499.1,7.01208104]
[1718929324035,0.05323762,3499.8,3499.1,7.01208104]
[1718929324235,2.49891461,3500.2,3499.1,7.01208104]
[1718929324419,2.2044,3500.2,3499.1,7.01208104]
[1718929324620,0.05323762,3500.1,3499.1,7.01208104]
[1718929324821,0.54815223,3500.1,3499.1,7.01208104]
[1718929325028,0.54815223,3500.1,3499.1,6.37461913]
[1718929325213,2.004,3499.8,3499.1,6.37461913]
[1718929325722,2.49891461,3499.8,3499.1,6.37461913]
[1718929326043,0.49491461,3499.7,3499.1,6.37461913]
[1718929326342,0.49491461,3499.7,3498.8,3.0]
[1718929326343,0.74480607,3499.7,3498.8,3.0]
[1718929326558,2.0788241,3499.6,3498.8,3.0]
[1718929326728,2.13206172,3499.6,3498.8,3.0]
[1718929326944,0.05323762,3499.6,3498.8,3.0]
[1718929327268,2.07884535,3499.5,3498.8,3.0]
[1718929327735,0.05308392,3499.4,3498.8,3.0]
[1718929328238,0.05306102,3499.3,3498.8,3.0]
[1718929328630,2.49894674,3499.8,3498.8,3.0]
[1718929328831,0.05306102,3499.2,3498.8,3.0]
[1718929329032,0.49494674,3499.6,3498.8,3.0]
[1718929329257,0.05306102,3499.1,3498.7,0.1211466]
[1718929329473,0.49494674,3500.3,3498.8,2.2709]
[1718929329775,2.07849197,3500.2,3498.9,0.23920466]
[1718929329971,2.07849197,3500.1,3498.9,3.23920466]
[1718929330675,2.13155299,3500.0,3498.9,3.23920466]
[1718929330837,2.07849197,3499.9,3499.0,0.56312513]
[1718929331176,3.79349197,3499.9,3498.9,3.0]
[1718929331471,2.004,3499.7,3498.7,0.1211466]
[1718929331638,2.07845846,3499.6,3498.7,0.1211466]
[1718929331837,2.57332166,3499.6,3498.7,0.1211466]
[1718929332037,2.13168628,3499.5,3498.7,0.1211466]
[1718929332373,0.05322782,3499.5,3498.7,0.1211466]
[1718929332570,3.723,3499.9,3498.7,0.1211466]
[1718929332740,2.77389507,3499.8,3498.7,0.1211466]
[1718929333087,2.57350691,3499.7,3498.7,0.1211466]
[1718929333264,2.07858412,3499.6,3498.7,0.1211466]
[1718929333635,0.05322782,3499.5,3498.7,0.1211466]
[1718929333835,2.07858412,3499.4,3498.7,0.1211466]
[1718929334457,2.13181194,3499.3,3498.7,0.1211466]
[1718929334658,0.05322782,3499.3,3498.7,0.1211466]
[1718929335172,0.69532279,3499.8,3498.7,0.1211466]
[1718929335382,2.07873135,3499.7,3498.7,0.1211466]
[1718929335550,2.62688196,3499.7,3498.7,0.1211466]
[1718929335744,2.07873135,3499.6,3498.7,0.1211466]
[1718929336346,0.05322782,3499.5,3498.7,0.1211466]
[1718929336580,2.07873135,3499.4,3498.7,0.1211466]
[1718929337065,2.13195917,3499.3,3498.7,0.1211466]
[1718929337267,0.05322782,3499.3,3498.7,0.1211466]
[1718929337450,2.004,3499.9,3498.7,0.1211466]
[1718929337649,2.07853066,3499.8,3498.7,0.1211466]
[1718929337852,2.57342267,3499.8,3498.7,0.1211466]
[1718929338049,2.13164728,3499.7,3498.7,0.1211466]
[1718929338274,2.07853066,3499.6,3498.7,0.1211466]
[1718929338457,2.07853066,3499.6,3498.8,2.2709]
[1718929338671,0.49489201,3500.7,3498.9,0.23920466]
[1718929338867,2.07820435,3500.6,3499.0,4.55726]
[1718929339078,2.07820435,3500.5,3499.2,2.2709]
[1718929339566,2.07820435,3500.4,3499.3,2.2709]
[1718929339765,0.49477781,3501.0,3499.4,0.755712]
[1718929339968,2.07795433,3500.9,3499.4,3.755712]
[1718929340151,0.04967575,3500.9,3499.4,3.755712]
[1718929340350,0.04967575,3500.9,3499.5,0.8312832]
[1718929340597,2.07795433,3500.8,3499.5,0.8312832]
[1718929341057,2.12763008,3500.7,3499.6,2.2709]
[1718929341284,2.07795433,3500.6,3499.6,5.2709]
[1718929341653,0.49477781,3501.0,3499.8,2.28583]
[1718929341850,2.004,3501.6,3499.9,2.28577]
[1718929342076,2.57249824,3501.5,3500.0,1.06813973]
[1718929342324,2.07772043,3501.4,3500.0,4.06813973]
[1718929342500,2.07772043,3501.4,3500.1,0.86248097]
[1718929342779,2.07772043,3501.4,3500.2,2.2709]
[1718929342983,0.04995695,3501.3,3500.2,5.2709]
[1718929343203,0.04995695,3501.3,3500.2,2.2709]
[1718929343405,0.49464087,3501.8,3500.2,2.2709]
[1718929343610,2.3822,3502.4,3500.3,0.86247397]
[1718929343611,2.07753816,3501.7,3500.3,0.86247397]
[1718929343758,2.12770101,3501.6,3500.3,3.86247397]
[1718929343955,2.07753816,3501.5,3500.3,3.86247397]
[1718929344481,2.12770101,3501.4,3500.3,3.86247397]
[1718929344686,2.07753816,3501.3,3500.4,0.6133374]
[1718929345001,0.05022818,3501.2,3500.4,0.6133374]
[1718929345290,2.07776459,3501.1,3500.3,3.0]
[1718929345617,2.07776459,3501.1,3500.2,2.2709]
[1718929345952,1.719,3501.5,3500.2,2.2709]
[1718929345953,0.05022818,3501.0,3500.2,2.2709]
[1718929346352,0.05022818,3500.9,3500.3,0.22709]
[1718929346552,2.004,3501.6,3500.2,2.2709]
[1718929346859,2.67804063,3501.5,3500.2,2.2709]
[1718929347078,2.07781245,3501.4,3500.2,2.2709]
[1718929347667,0.05010075,3501.3,3500.2,2.2709]
[1718929347975,2.07781245,3501.2,3500.3,0.22709]
[1718929348401,2.07781245,3501.1,3500.3,0.22709]
[1718929348590,0.05010075,3501.1,3500.3,0.22709]
[1718929348785,0.05010075,3501.1,3500.4,0.249799]
[1718929348960,2.004,3501.6,3500.4,0.249799]
[1718929349155,2.07758286,3501.5,3500.4,0.249799]
[1718929349488,0.05015958,3501.4,3500.5,2.2709]
[1718929349688,0.05015958,3501.4,3500.6,0.8033229]
[1718929349864,0.28755335,3503.4,3500.6,0.8033229]
[1718929349865,4.1012,3503.0,3500.7,4.55615]
[1718929350075,2.004,3502.7,3500.8,3.34966429]
[1718929350272,2.07725898,3502.6,3500.9,3.0]
[1718929350603,2.12813105,3502.6,3500.9,3.0]
[1718929350896,2.12813105,3502.6,3501.0,0.63353843]
[1718929350897,2.07725898,3502.5,3501.0,0.63353843]
[1718929351622,0.05087207,3502.4,3501.0,0.63353843]
[1718929352722,2.004,3501.9,3500.8,3.0]
[1718929352886,0.55,3501.8,3500.7,2.2709]
[1718929353220,0.05098313,3501.8,3500.7,2.2709]
[1718929353513,0.05098313,3501.8,3500.8,1.16455191]
[1718929353673,0.55,3502.0,3500.8,4.16455191]
[1718929354004,0.55,3502.2,3500.8,4.16455191]
[1718929354179,2.3822,3503.0,3501.0,2.2709]
[1718929354379,2.07710351,3502.9,3501.2,2.28489]
[1718929354701,2.07710351,3502.8,3501.3,2.2709]
[1718929354878,2.07710351,3502.8,3501.4,0.455579]
[1718929355281,6.1052,3502.6,3501.4,3.0]
[1718929355506,2.07710351,3502.5,3501.4,3.0]
[1718929355807,2.3822,3501.8,3501.0,3.0]
[1718929356127,2.3822,3501.8,3500.5,6.37461913]
[1718929356128,3.723,3501.5,3500.6,3.0]
[1718929356273,2.07776383,3501.4,3500.6,3.0]
[1718929356473,0.55,3501.3,3500.6,3.0]
[1718929356668,0.6011628,3501.3,3500.6,3.0]
[1718929356895,0.6011628,3501.3,3500.5,6.37461913]
[1718929358374,1.03357908,3501.3,3500.6,3.0]
[1718929358831,2.07789441,3501.2,3500.6,3.0]
[1718929359321,0.05083936,3501.1,3500.6,3.0]
[1718929359910,0.98241628,3501.3,3500.6,3.0]
[1718929360213,2.59924892,3501.2,3500.6,3.0]
[1718929360380,0.05083936,3501.2,3500.6,3.0]
[1718929361135,2.004,3501.5,3500.0,2.2709]
[1718929361279,0.05077073,3501.1,3500.0,2.2709]
[1718929361579,4.3862,3501.8,3500.0,2.2709]
[1718929361910,2.9166703,3501.7,3500.1,0.755673]
[1718929362082,2.07767957,3501.6,3500.1,3.755673]
[1718929362283,2.8079666,3501.6,3500.2,0.6026573]
[1718929362505,0.05083283,3501.5,3500.2,0.6026573]
[1718929362878,4.63180735,3501.4,3500.1,3.0]
[1718929363197,2.12866439,3501.3,3500.0,2.2709]
[1718929363399,0.0508459,3501.3,3500.0,2.2709]
[1718929363595,0.81048459,3501.2,3500.0,2.2709]
[1718929364083,0.0508459,3501.1,3500.0,2.2709]
[1718929364419,2.3822,3501.0,3499.5,2.2709]
[1718929364590,2.3822,3501.0,3499.6,1.16455191]
[1718929364904,0.05078706,3500.9,3499.6,4.16455191]
[1718929365313,0.81048459,3501.2,3499.6,4.16455191]
[1718929365615,2.3822,3501.5,3499.6,4.16455191]
[1718929365788,2.12867254,3501.4,3499.7,2.2859]
[1718929365984,0.05078706,3501.4,3499.7,3.0]
[1718929366189,0.05078706,3501.4,3499.6,1.16455191]
[1718929366190,2.3822,3501.5,3499.8,0.87214819]
[1718929366390,2.62775743,3501.4,3499.8,0.87214819]
[1718929366596,0.60078706,3501.4,3499.8,0.87214819]
[1718929367190,0.60078706,3501.4,3499.8,3.87214819]
[1718929367497,0.55,3501.4,3499.8,6.15796819]
[1718929367702,0.55,3501.4,3499.9,1.36971392]
[1718929368080,1.719,3502.6,3499.9,1.36971392]
[1718929368081,2.3822,3502.0,3500.3,2.2855]
[1718929368285,2.07748849,3501.9,3500.1,3.0]
[1718929368487,2.07748849,3501.9,3500.0,2.2709]
[1718929368488,2.36658705,3501.9,3500.2,0.89263339]
[1718929368687,0.28909856,3501.9,3500.2,0.89263339]
[1718929369382,2.07751132,3501.8,3500.2,0.89263339]
[1718929369915,0.05087856,3501.7,3500.2,0.89263339]
[1718929370114,0.05087856,3501.7,3500.3,0.84491634]
[1718929370480,0.23822,3501.9,3500.3,0.84491634]
[1718929370681,2.07751989,3501.8,3500.3,0.84491634]
[1718929373132,2.07751989,3501.8,3500.3,3.84491634]
[1718929374201,2.07749947,3501.7,3500.4,2.2709]
[1718929374403,4.82482,3502.0,3500.5,1.33830689]
[1718929374627,2.6782065,3501.9,3500.5,4.33830689]
[1718929374802,2.07749127,3501.8,3500.6,1.04541232]
[1718929375005,0.05075117,3501.7,3500.6,1.04541232]
[1718929375399,2.004,3502.4,3500.6,1.04541232]
[1718929375695,2.67821853,3502.3,3500.6,1.04541232]
[1718929376010,2.07732686,3502.2,3500.6,1.04541232]
[1718929376207,0.60092107,3502.1,3500.7,0.86017623]
[1718929376542,0.05092107,3502.1,3500.8,2.2709]
[1718929376834,2.004,3502.4,3500.8,5.2709]
[1718929377031,2.12823067,3502.3,3500.9,1.47910054]
[1718929377232,2.07722467,3502.2,3500.9,4.47910054]
[1718929377601,0.051006,3502.1,3500.9,4.47910054]
[1718929377801,2.004,3502.4,3501.0,0.98954268]
[1718929378111,0.051006,3502.3,3501.0,0.98954268]
[1718929378516,3.723,3502.8,3501.0,0.98954268]
[1718929378728,0.051104,3502.2,3501.1,1.00246532]
[1718929378920,1.16052,3502.7,3501.1,1.00246532]
[1718929379108,0.051104,3502.1,3501.2,2.2709]
[1718929379311,2.3822,3502.9,3501.2,5.2709]
[1718929379515,2.07695149,3502.8,3501.2,5.2709]
[1718929379718,0.05113337,3502.8,3501.3,0.62733653]
[1718929379944,2.004,3503.3,3501.4,2.28479]
[1718929380101,2.004,3503.3,3501.6,2.2709]
[1718929380102,0.05113337,3502.7,3501.6,2.2709]
[1718929380306,2.3822,3503.4,3501.6,2.2709]
[1718929380541,1.719,3503.0,3501.6,3.0]
[1718929380749,2.004,3502.5,3501.2,3.0]
[1718929381040,2.12781899,3502.4,3501.3,1.26479844]
[1718929381247,2.07659742,3502.3,3501.3,1.26479844]
[1718929381924,2.004,3502.5,3501.3,1.26479844]
[1718929381925,2.12781899,3502.2,3501.3,1.26479844]
[1718929382130,2.07659742,3502.1,3501.4,1.29103176]
[1718929382829,0.05122157,3502.0,3501.6,2.004]
[1718929383033,2.3822,3503.8,3501.8,2.2709]
[1718929383230,2.12597148,3503.7,3501.9,2.48405447]
[1718929383537,2.3822,3503.8,3502.0,2.48405447]
[1718929383538,2.07652518,3503.6,3502.0,2.48405447]
[1718929383706,2.07652518,3503.5,3502.1,2.35725277]
[1718929383906,2.07652518,3503.4,3502.1,1.36358225]
[1718929384107,2.07652518,3503.3,3502.2,0.72443803]
[1718929384563,2.07652518,3503.2,3502.2,0.72443803]
[1718929384713,2.82082,3503.8,3502.2,0.72443803]
[1718929385017,2.07634205,3503.7,3502.3,0.3724438]
[1718929385222,0.0494463,3503.6,3502.3,0.3724438]
[1718929385421,2.07634205,3503.5,3501.9,3.0]
[1718929385841,2.07634205,3503.4,3501.8,7.55542]
[1718929386022,2.07634205,3503.3,3501.9,2.83744685]
[1718929386234,2.07634205,3503.2,3502.0,3.0]
[1718929386413,2.07634205,3503.6,3501.9,4.84384265]
[1718929386624,2.07637134,3503.5,3502.0,1.7383812]
[1718929386821,2.07637134,3503.4,3502.0,4.7383812]
[1718929387031,2.12581764,3503.3,3502.1,1.00092812]
[1718929387221,0.0494463,3503.3,3502.1,4.00092812]
[1718929387431,0.482482,3503.7,3502.2,2.2709]
[1718929387648,2.07636919,3503.6,3502.2,2.2709]
[1718929387817,2.07636919,3503.5,3502.2,5.2709]
[1718929388019,2.12610283,3503.4,3502.2,5.2709]
[1718929388217,0.04973364,3503.4,3502.3,1.73848285]
[1718929388521,0.43862,3503.8,3502.3,4.73848285]
[1718929388867,2.07636446,3503.7,3502.6,2.2709]
[1718929389060,0.2866,3505.5,3504.3,4.55378]
[1718929389215,4.0,3504.4,3504.3,2.2709]
[1718929389438,2.3822,3505.5,3504.3,2.2709]
[1718929389726,2.1217566,3505.4,3504.3,2.2709]
[1718929389921,0.0464399,3505.4,3504.3,2.2709]
[1718929390112,0.24286399,3505.3,3504.3,2.2709]
[1718929390521,0.04687088,3505.2,3504.4,0.05706063]
[1718929391036,4.3862,3506.5,3504.4,0.05706063]
[1718929391231,0.04740919,3506.4,3504.4,3.05706063]
[1718929391533,0.04740919,3506.4,3504.4,2.28282]
[1718929391752,0.24296092,3506.3,3504.6,2.28269]
[1718929391975,0.24296092,3506.3,3504.7,2.2709]
[1718929392255,2.3822,3507.0,3504.7,2.2709]
[1718929392460,2.12285122,3506.9,3504.7,5.2709]
[1718929392631,0.04810076,3506.9,3504.7,2.2709]
[1718929392814,0.24303008,3506.8,3504.8,3.1898964]
[1718929393019,0.04810076,3506.7,3504.9,3.0]
[1718929393219,2.819,3507.5,3505.0,4.55335]
[1718929393415,2.12306292,3507.4,3505.1,3.0]
[1718929393733,2.12306292,3507.4,3505.0,2.2709]
[1718929393734,2.3822,3507.2,3505.0,2.2709]
[1718929393922,0.45052629,3507.1,3505.1,0.22709]
[1718929394121,0.04862555,3507.1,3505.1,0.22709]
[1718929394542,0.04862555,3507.1,3505.2,2.28227]
[1718929394745,0.04862555,3507.1,3505.1,0.22709]
[1718929394746,0.04862555,3507.1,3505.3,2.2709]
[1718929394949,4.1012,3507.8,3505.4,0.478035]
[1718929395149,4.1012,3507.8,3505.5,3.07754065]
[1718929395353,0.04876569,3507.7,3505.7,0.59609683]
[1718929395524,0.04876569,3507.7,3505.8,2.48144382]
[1718929395735,4.1012,3507.8,3505.9,0.69716859]
[1718929395736,0.41499657,3507.6,3505.9,0.69716859]
[1718929396640,0.04201896,3507.6,3505.9,0.69716859]
[1718929397029,4.58001896,3507.6,3505.9,0.69716859]
[1718929397230,4.58001896,3507.6,3505.8,3.0]
[1718929397231,2.3822,3507.4,3505.8,3.0]
[1718929397444,0.04934233,3507.3,3505.8,3.0]
[1718929397626,0.59934233,3507.3,3505.8,3.0]
[1718929398022,2.819,3507.0,3505.8,3.0]
[1718929398227,2.3822,3506.8,3505.8,3.0]
[1718929398457,0.04925762,3506.7,3505.8,3.0]
[1718929398631,0.59925762,3506.7,3505.8,3.0]
[1718929398848,0.04925762,3506.7,3505.8,3.0]
[1718929399025,0.2819,3506.9,3505.8,3.0]
[1718929399332,0.04913712,3506.8,3505.8,3.0]
[1718929399548,2.3822,3507.3,3505.9,0.05693262]
[1718929399759,0.04749922,3506.7,3505.8,5.2709]
[1718929399928,2.3822,3507.3,3505.9,1.22371129]
[1718929400350,0.04735263,3507.2,3505.9,1.22371129]
[1718929400863,2.3822,3507.3,3505.9,1.22371129]
[1718929401227,0.04748291,3507.2,3505.9,1.22371129]
[1718929401422,2.3822,3507.3,3506.0,1.28692304]
[1718929401671,0.04748291,3507.2,3506.0,1.28692304]
[1718929401986,0.04748291,3507.2,3505.8,3.0]
[1718929403915,0.04748291,3507.2,3505.9,2.48143542]
[1718929404198,2.3822,3507.3,3506.0,2.48142264]
[1718929404419,2.3822,3507.9,3506.1,4.75232264]
[1718929404566,3.07422,3507.9,3506.2,6.40455335]
[1718929404763,3.07422,3507.9,3506.3,2.48142264]
[1718929404764,0.04756761,3507.8,3506.3,2.48142264]
[1718929404964,2.3822,3507.9,3506.2,3.92313071]
[1718929405156,0.04756761,3507.7,3506.5,0.59159379]
[1718929405392,0.0475839,3507.8,3506.6,2.48114999]
[1718929405603,2.3822,3508.4,3506.8,0.59159379]
[1718929405768,2.3822,3508.4,3506.9,2.48114999]
[1718929406091,2.3822,3508.4,3506.9,3.0]
[1718929406413,0.23822,3508.3,3507.0,0.99662129]
[1718929406696,0.23822,3508.3,3507.0,3.99662129]
[1718929407159,0.23822,3508.3,3507.0,0.99662129]
[1718929408299,0.23822,3508.3,3507.1,0.99234708]
[1718929408458,0.23822,3508.3,3507.2,0.9923467]
[1718929408661,0.262042,3508.2,3507.1,1.09628342]
[1718929408895,0.262042,3508.2,3507.2,0.99234658]
[1718929409102,0.262042,3508.2,3507.1,1.09628342]
[1718929409307,0.262042,3508.2,3507.2,2.48087395]
[1718929409473,0.262042,3508.2,3507.2,3.0]
[1718929409675,0.262042,3508.2,3507.1,1.09628342]
[1718929409877,0.9638998,3508.2,3507.0,3.0]
[1718929410065,2.819,3508.0,3506.9,3.0]
[1718929410266,0.0466642,3507.9,3507.0,0.99244792]
[1718929410496,0.0466642,3507.9,3506.9,3.0]
[1718929410497,0.3285642,3507.9,3506.9,3.0]
[1718929410665,0.2819,3507.9,3506.9,3.0]
[1718929411273,4.1012,3508.4,3507.0,0.99242526]
[1718929411274,2.3822,3508.4,3507.0,0.99242526]
[1718929411509,4.538,3508.6,3506.9,3.59159379]
[1718929411716,0.0465403,3508.3,3507.0,0.9924265]
[1718929411934,0.55999433,3508.3,3506.9,3.0]
[1718929412212,0.55999433,3508.3,3507.0,0.99244537]
[1718929412368,0.55999433,3508.3,3506.9,3.0]
[1718929412696,0.55999433,3508.3,3507.0,0.99242446]
[1718929412896,0.55999433,3508.3,3506.9,3.0]
[1718929413100,0.55999433,3508.3,3507.0,2.08787028]
[1718929413389,0.55999433,3508.3,3507.0,4.09544401]
[1718929413589,0.0465403,3508.3,3507.1,2.48097734]
[1718929413797,0.0465403,3508.3,3507.2,2.48092551]
[1718929413994,2.819,3508.6,3507.3,0.99240202]